bitfinex-derivatives/quotes_ETHF0:USTF0_20250212
["timestamp","ask_amount","ask_price","bid_price","bid_amount"]
[1739403389004,2.015,2756.0,2755.5,0.7257]
[1739403389206,2.015,2756.0,2755.6,43.34182875]
[1739403389403,2.015,2756.0,2755.7,1.63403277]
[1739403389599,2.015,2756.0,2755.8,0.72623679]
[1739403389809,3.2078,2755.9,2754.9,3.2078]
[1739403390112,0.72566,2755.7,2755.6,0.0054486]
[1739403390309,3.2078,2755.8,2755.6,0.0054486]
[1739403390605,0.01284271,2756.8,2755.6,0.0054486]
[1739403390606,7.46706187,2756.5,2755.6,0.0054486]
[1739403390807,5.2218,2756.5,2755.7,0.72617931]
[1739403391001,5.2218,2756.5,2755.6,0.0054486]
[1739403391202,0.72566,2755.7,2755.6,0.0054486]
[1739403391403,2.74666,2755.7,2755.6,0.0054486]
[1739403392811,2.74666,2755.7,2754.9,3.2078]
[1739403392812,0.72585,2755.0,2754.9,3.2078]
[1739403393108,0.72593,2754.7,2754.6,3.2078]
[1739403393308,0.72591,2754.8,2754.6,3.9343065]
[1739403393504,2.021,2755.0,2754.7,0.7265065]
[1739403393709,0.7259,2754.9,2754.8,0.7265065]
[1739403394010,0.7259,2754.9,2754.8,1.63465284]
[1739403394507,2.021,2755.0,2754.8,1.63465284]
[1739403394713,0.72587,2754.9,2754.8,0.90814634]
[1739403395014,0.72587,2754.9,2754.8,1.63468747]
[1739403395614,6.0,2754.9,2753.9,0.8435]
[1739403395908,0.72608,2754.1,2754.0,0.72664964]
[1739403396104,2.74008,2754.1,2754.0,41.52664964]
[1739403396503,2.74008,2754.1,2754.0,40.8]
[1739403397313,8.014,2754.1,2753.8,0.0054486]
[1739403397506,3.93394,2753.9,2753.8,0.0054486]
[1739403397708,3.93394,2753.9,2753.8,8.6e-06]
[1739403398109,9.93394,2753.9,2753.8,8.6e-06]
[1739403400203,5.2218,2753.9,2753.8,8.6e-06]
[1739403400405,5.94794,2753.9,2753.8,8.6e-06]
[1739403402411,5.94894,2753.9,2753.8,40.8000086]
[1739403403603,0.72645,2752.8,2752.6,3.2078]
[1739403403915,1.81565,2753.5,2752.2,0.7852]
[1739403403916,0.72641,2752.9,2752.2,0.7852]
[1739403404107,3.2078,2753.1,2752.2,1.51176]
[1739403404315,3.2078,2753.1,2752.4,3.2078]
[1739403404615,0.72641,2752.9,2752.5,40.8]
[1739403404815,0.0054486,2753.0,2752.5,41.0418823]
[1739403405017,0.7264,2752.9,2752.5,40.8054486]
[1739403405211,0.0054486,2753.0,2752.5,40.8054486]
[1739403405718,0.0054486,2753.0,2752.5,41.5319386]
[1739403405919,0.7318286,2753.0,2752.5,41.5319386]
[1739403406106,0.7318386,2753.0,2752.5,40.8054486]
[1739403406312,4.98574187,2752.6,2752.5,8.6e-06]
[1739403406516,6.27626187,2752.6,2751.5,3.2078]
[1739403406720,3.93437,2752.3,2751.5,3.2078]
[1739403406906,0.72664,2752.1,2751.5,3.2078]
[1739403407111,2.018,2752.0,2751.5,3.2078]
[1739403407413,3.2078,2751.7,2750.9,41.6585]
[1739403407610,5.2258,2752.0,2751.5,0.0054486]
[1739403407814,0.7321886,2751.6,2751.5,0.0054486]
[1739403408515,0.0054486,2751.6,2751.5,0.0054486]
[1739403408723,0.7321886,2751.6,2751.5,0.0054486]
[1739403409924,4.99145047,2751.6,2751.5,0.0054486]
[1739403410415,7.00745047,2751.6,2751.5,0.0054486]
[1739403410625,2.7481886,2751.6,2751.5,0.0054486]
[1739403412014,7.00745047,2751.6,2751.5,0.0054486]
[1739403412520,7.00745047,2751.6,2751.5,8.6e-06]
[1739403413221,7.00745047,2751.6,2750.3,0.23590613]
[1739403413222,0.72706,2750.4,2750.3,0.23590613]
[1739403413424,2.74306,2750.4,2750.2,0.8544]
[1739403413722,2.016,2750.4,2750.3,40.8]
[1739403414316,2.74306,2750.4,2750.3,40.8]
[1739403417718,0.72711,2750.2,2750.1,0.00363242]
[1739403418028,2.016,2750.4,2750.1,0.00363242]
[1739403418325,0.72709,2750.3,2750.2,40.8]
[1739403418715,2.016,2750.4,2750.2,40.8]
[1739403419125,0.72709,2750.3,2750.2,40.8]
[1739403419724,2.016,2750.4,2750.1,0.00363242]
[1739403419925,0.72709,2750.3,2750.1,0.00363242]
[1739403420220,3.2078,2750.5,2750.2,40.8]
[1739403420420,2.017,2750.4,2750.2,40.8]
[1739403420622,2.017,2750.3,2750.2,40.8]
[1739403421823,2.74409,2750.3,2750.2,40.8]
[1739403423417,0.72711,2750.2,2750.1,0.00363242]
[1739403425923,8.19417187,2750.2,2750.1,0.00363242]
[1739403426521,0.72734,2749.4,2749.3,40.8]
[1739403426722,2.017,2749.4,2749.3,40.8]
[1739403427028,3.2078,2749.8,2749.3,40.8]
[1739403427029,2.017,2749.5,2749.4,0.72733]
[1739403427229,2.017,2749.5,2749.3,40.8]
[1739403427430,2.017,2749.5,2749.3,41.52735]
[1739403427631,2.017,2749.5,2749.4,0.72733]
[1739403428129,0.0054486,2749.7,2749.6,0.72727]
[1739403428329,2.017,2750.1,2749.6,0.72727]
[1739403428330,2.017,2750.3,2749.7,1.81812]
[1739403428531,2.017,2750.3,2750.1,0.72713]
[1739403428731,2.017,2750.3,2750.0,3.93494]
[1739403428935,2.017,2750.3,2750.2,40.8]
[1739403429329,0.0054486,2750.5,2750.2,46.8]
[1739403429633,6.27626187,2751.7,2750.5,1.81757]
[1739403429828,6.27626187,2751.7,2751.0,3.2078]
[1739403430532,0.0054486,2751.6,2751.1,0.72686]
[1739403430834,0.0054486,2751.6,2751.4,3.2078]
[1739403433627,0.72678,2751.5,2750.8,3.2078]
[1739403433827,0.7268,2751.4,2750.8,3.2078]
[1739403434122,2.74379,2751.5,2750.8,3.2078]
[1739403434320,0.7268,2751.4,2750.8,3.2078]
[1739403434526,2.74379,2751.5,2750.8,3.93474]
[1739403435329,2.017,2751.5,2751.0,0.72689]
[1739403435533,2.017,2751.5,2750.8,3.43923707]
[1739403435841,2.74378,2751.5,2750.8,4.16617707]
[1739403436135,2.74378,2751.5,2750.5,0.9293]
[1739403436136,3.2078,2751.1,2750.5,4.1371]
[1739403436428,4.25926187,2750.9,2750.5,3.2078]
[1739403436633,4.25926187,2750.9,2750.0,3.2132486]
[1739403436834,4.25926187,2750.9,2750.1,40.8]
[1739403436835,0.72702,2750.6,2750.1,40.8]
[1739403437129,2.017,2750.5,2750.1,40.8]
[1739403437331,2.017,2750.5,2750.0,3.2132486]
[1739403437529,2.017,2750.5,2750.0,3.9404086]
[1739403437724,2.017,2750.5,2750.0,3.2132486]
[1739403437928,2.017,2750.5,2750.1,40.8]
[1739403437929,0.7271,2750.3,2750.1,40.8]
[1739403438235,6.27626187,2750.5,2750.1,40.8]
[1739403438428,0.72708,2750.4,2750.1,40.8]
[1739403438631,3.2078,2750.3,2750.0,0.0054486]
[1739403438929,0.72714,2750.1,2750.0,0.0054486]
[1739403439130,3.2078,2750.3,2750.0,0.0054486]
[1739403439333,0.72712,2750.2,2750.0,0.0054486]
[1739403439533,2.016,2750.1,2750.0,0.0054486]
[1739403439935,7.00240187,2750.1,2750.0,0.0054486]
[1739403440334,0.72717,2750.0,2749.3,3.2078]
[1739403440633,0.72734,2749.4,2748.7,0.22660333]
[1739403440826,2.74435,2749.3,2748.8,40.8]
[1739403441136,5.95215,2749.3,2748.8,40.8]
[1739403441436,0.72738,2749.2,2748.8,40.8054486]
[1739403441628,0.72742,2749.1,2748.8,40.8054486]
[1739403441935,5.2302486,2749.3,2748.8,40.8054486]
[1739403442124,4.25926187,2749.1,2748.8,40.8054486]
[1739403442327,3.2078,2749.0,2748.8,0.0054486]
[1739403443023,0.72746,2748.9,2747.8,3.2078]
[1739403443227,3.2078,2749.0,2747.8,3.2078]
[1739403443228,4.25926187,2748.6,2747.8,3.2078]
[1739403443535,2.017,2748.8,2748.2,3.2078]
[1739403443931,2.7445,2748.8,2748.2,3.2078]
[1739403444131,0.72751,2748.7,2748.2,3.2078]
[1739403444329,0.72751,2748.7,2747.4,3.59133]
[1739403444330,4.25926187,2749.0,2748.5,3.2078]
[1739403444532,2.017,2748.9,2748.5,3.2078]
[1739403444732,2.017,2748.9,2748.5,3.93535]
[1739403445040,2.017,2748.9,2748.6,0.72753]
[1739403445234,2.017,2748.9,2748.5,3.93534]
[1739403445429,2.017,2748.9,2748.5,3.2078]
[1739403445630,2.017,2748.9,2748.5,3.93535]
[1739403445830,2.017,2748.9,2748.5,3.2078]
[1739403446030,0.0054486,2749.3,2748.5,3.2078]
[1739403446232,2.017,2749.2,2748.8,3.2078]
[1739403446538,2.017,2749.2,2748.8,3.93527]
[1739403446833,2.017,2749.2,2748.8,3.2078]
[1739403447036,2.017,2749.2,2748.9,40.8]
[1739403447736,8.19449187,2749.0,2748.9,40.8]
[1739403448140,7.46706187,2749.0,2748.5,3.2078]
[1739403448339,0.72754,2748.6,2747.9,3.9355]
[1739403448535,2.017,2748.5,2748.0,40.8]
[1739403448736,2.017,2748.5,2748.2,3.2078]
[1739403449042,2.017,2748.5,2748.4,0.72759]
[1739403449532,2.017,2748.5,2748.2,3.2078]
[1739403449836,2.017,2748.5,2748.4,40.8]
[1739403452535,2.74456,2748.5,2748.4,40.8]
[1739403452837,2.74456,2748.5,2747.6,1.81947]
[1739403452838,0.72765,2748.2,2747.6,3.93558]
[1739403453037,2.017,2748.5,2747.9,3.2078]
[1739403453241,2.017,2748.5,2748.1,0.72765]
[1739403453643,2.017,2748.5,2748.0,40.8]
[1739403454129,0.7276,2748.4,2748.0,40.8]
[1739403454336,2.017,2748.5,2748.0,40.8]
[1739403454541,0.72764,2748.3,2748.0,40.8]
[1739403454740,0.72765,2748.2,2748.0,40.8]
[1739403454929,3.2078,2748.4,2748.0,40.8]
[1739403455135,0.72767,2748.1,2748.0,40.8]
[1739403455839,3.2078,2748.4,2748.0,40.8]
[1739403456240,3.93539,2748.4,2748.0,40.8]
[1739403456635,3.2078,2748.4,2748.0,40.8]
[1739403457440,0.72765,2748.2,2748.0,40.8]
[1739403457841,0.72767,2748.1,2748.0,40.8]
[1739403458041,0.72765,2748.2,2748.0,40.8]
[1739403458544,5.02681,2748.4,2748.0,40.8]
[1739403458740,2.017,2748.5,2747.4,4.118]
[1739403458741,3.2078,2748.1,2747.4,4.118]
[1739403459042,4.25926187,2748.2,2747.4,4.118]
[1739403459341,4.25926187,2748.2,2747.5,41.52781]
[1739403459546,4.25926187,2748.2,2747.5,40.8]
[1739403459740,1.81925,2748.0,2747.1,3.2078]
[1739403459935,0.72779,2747.7,2747.1,3.2078]
[1739403460245,3.21325871,2747.8,2747.2,40.8]
[1739403460442,0.00545871,2747.8,2747.4,3.2078]
[1739403461546,0.73321871,2747.8,2747.4,3.2078]
[1739403461841,0.00545871,2747.8,2747.4,3.2078]
[1739403462043,0.72778,2747.7,2747.4,3.2078]
[1739403462350,0.72779,2747.7,2747.4,3.2078]
[1739403462546,0.00545871,2747.8,2747.4,3.2078]
[1739403462746,0.00545871,2747.8,2747.4,3.93564]
[1739403463047,0.00545871,2747.8,2747.4,3.2078]
[1739403463449,0.00545871,2747.8,2747.4,3.93565]
[1739403463651,0.00545871,2747.8,2747.4,3.2078]
[1739403464549,0.73322871,2747.8,2747.4,3.2078]
[1739403465547,0.00545871,2747.8,2747.4,3.2078]
[1739403465751,3.92580867,2747.8,2747.5,40.8]
[1739403466455,4.65356867,2747.8,2747.5,40.8]
[1739403466764,3.92580867,2747.8,2747.5,41.52782]
[1739403467066,3.92580867,2747.8,2747.5,40.8]
[1739403467260,0.00516468,2747.6,2747.5,41.52783]
[1739403467659,0.00516468,2747.6,2747.5,40.8]
[1739403468061,0.00516468,2747.6,2747.5,41.52783]
[1739403468265,0.00516468,2747.6,2747.5,40.8]
[1739403469459,0.73296468,2747.6,2747.5,40.8]
[1739403469658,3.21296468,2747.6,2746.8,4.1027]
[1739403469865,3.92034996,2747.2,2746.8,4.8307]
[1739403470065,2.017,2747.1,2746.8,4.8307]
[1739403470364,2.017,2747.1,2746.9,40.8]
[1739403470968,2.017,2747.1,2747.0,0.72796]
[1739403472360,2.017,2747.1,2746.9,40.8]
[1739403472562,2.017,2747.1,2746.9,41.52798]
[1739403472959,2.017,2747.1,2746.9,40.8]
[1739403473160,2.017,2747.1,2747.0,0.72796]
[1739403473658,2.017,2747.1,2746.9,40.8]
[1739403474662,2.017,2747.1,2746.9,41.52797]
[1739403475661,2.017,2747.1,2747.0,0.72796]
[1739403477765,4.64818996,2747.5,2747.1,0.72793]
[1739403477964,2.017,2747.4,2747.1,0.72793]
[1739403478870,3.92034996,2747.2,2746.9,40.8]
[1739403479365,3.92034996,2747.2,2746.9,41.52798]
[1739403479964,3.92034996,2747.2,2746.9,40.8]
[1739403480470,3.92034996,2747.2,2747.0,0.72794]
[1739403480871,3.92034996,2747.2,2747.1,0.72794]
[1739403481373,5.93734996,2747.2,2747.1,0.72794]
[1739403482267,5.93734996,2747.2,2746.9,40.8]
[1739403482468,5.93734996,2747.2,2747.0,0.72794]
[1739403482769,5.93734996,2747.2,2746.9,40.8]
[1739403483474,0.72794,2747.1,2746.9,40.8]
[1739403483675,6.66526996,2747.2,2746.9,40.8]
[1739403483861,5.93734996,2747.2,2746.9,40.8]
[1739403484369,6.66526996,2747.2,2746.9,40.8]
[1739403484569,5.93734996,2747.2,2746.9,40.8]
[1739403484773,5.93734996,2747.2,2747.1,0.72793]
[1739403485778,5.93734996,2747.2,2746.9,40.8]
[1739403485969,5.93734996,2747.2,2747.1,0.72793]
[1739403486475,5.93734996,2747.2,2747.0,0.72794]
[1739403486876,5.93734996,2747.2,2746.9,40.8]
[1739403487171,5.93734996,2747.2,2746.8,3.2078]
[1739403487469,1.82005,2746.8,2745.7,3.2078]
[1739403487676,3.92034996,2746.5,2745.7,3.2078]
[1739403487878,2.016,2746.5,2746.4,0.72811]
[1739403488272,2.016,2746.5,2746.3,3.2078]
[1739403489481,2.016,2746.5,2746.4,0.72812]
[1739403489683,2.016,2746.5,2746.4,1.65322]
[1739403490775,2.016,2746.5,2746.4,42.45322]
[1739403491080,2.016,2746.5,2746.4,41.7251]
[1739403491978,2.016,2746.5,2746.0,4.0708]
[1739403492186,4.64850996,2746.3,2746.0,4.0708]
[1739403492373,3.92034996,2746.3,2746.0,4.0708]
[1739403492580,4.64850996,2746.3,2746.0,3.2078]
[1739403492881,4.64850996,2746.3,2746.0,3.93601]
[1739403492882,3.92034996,2746.3,2746.0,3.93601]
[1739403493385,4.64850996,2746.3,2746.0,3.2078]
[1739403493783,0.72818,2746.2,2746.0,3.2078]
[1739403493978,0.7282,2746.2,2746.0,3.2078]
[1739403494183,0.72819,2746.2,2746.0,3.2078]
[1739403494683,3.92034996,2746.3,2746.0,3.2078]
[1739403494684,4.64851996,2746.3,2746.0,3.2078]
[1739403494878,3.92034996,2746.3,2746.0,3.2078]
[1739403495078,3.92034996,2746.3,2745.8,40.8]
[1739403495389,7.12814996,2746.0,2745.3,3.2078]
[1739403495575,5.02877,2745.4,2744.7,3.2078]
[1739403495779,5.02877,2745.4,2744.3,0.8885]
[1739403495780,7.12814996,2744.8,2744.3,3.2078]
[1739403495982,3.92034996,2744.5,2744.4,40.8]
[1739403496578,2.016,2744.7,2744.4,40.8]
[1739403497587,19.077,2745.2,2745.0,0.72849]
[1739403497986,19.077,2745.2,2744.7,0.9135]
[1739403498285,3.92034996,2745.1,2744.7,1.64206]
[1739403498484,3.92034996,2745.1,2744.7,0.9135]
[1739403499286,3.92034996,2744.8,2744.4,40.8]
[1739403499487,4.64896996,2744.5,2744.4,40.8]
[1739403499678,3.92034996,2744.5,2744.4,40.8]
[1739403500284,7.12814996,2744.5,2744.4,40.8]
[1739403500788,2.016,2744.7,2744.4,41.52864]
[1739403501386,2.016,2744.7,2744.4,40.8]
[1739403501789,2.016,2744.7,2744.5,0.72861]
[1739403501981,2.016,2744.7,2744.6,0.7286]
[1739403502288,2.016,2744.9,2744.8,0.72854]
[1739403502875,2.016,2744.9,2744.8,40.8]
[1739403503482,2.016,2744.9,2744.8,41.52854]
[1739403503985,2.016,2744.9,2744.8,40.8]
[1739403504186,2.016,2744.9,2744.8,41.52854]
[1739403504984,2.016,2744.9,2744.8,44.73634]
[1739403506982,2.016,2744.9,2744.8,44.0078]
[1739403507886,2.74452,2744.9,2744.8,40.8]
[1739403508691,2.016,2744.9,2744.5,3.2078]
[1739403508884,3.92034996,2744.8,2744.5,3.2078]
[1739403509083,3.92034996,2744.8,2744.6,40.8]
[1739403510286,2.016,2744.9,2744.6,41.52859]
[1739403510587,2.016,2744.9,2744.7,0.72857]
[1739403510788,2.016,2744.9,2744.6,41.52858]
[1739403511288,2.016,2744.9,2744.8,0.72854]
[1739403511882,2.016,2744.9,2744.6,40.8]
[1739403512083,3.92034996,2744.7,2744.2,3.2078]
[1739403512284,3.92034996,2744.3,2744.2,3.2078]
[1739403512791,3.92034996,2744.3,2744.0,40.8]
[1739403513590,4.64902996,2744.3,2744.0,40.8]
[1739403513789,3.92034996,2744.3,2744.0,40.8]
[1739403513993,4.64903996,2744.3,2744.0,40.8]
[1739403514188,3.92034996,2744.3,2743.9,3.2078]
[1739403514391,3.92034996,2744.0,2743.5,4.2405]
[1739403514587,3.92034996,2744.0,2743.5,4.96938]
[1739403514588,2.015,2743.9,2743.5,4.96938]
[1739403514793,2.015,2743.9,2743.6,40.8]
[1739403514996,3.92034996,2743.7,2743.6,40.8]
[1739403515505,2.02045871,2743.9,2743.6,40.8]
[1739403515695,2.02045871,2743.9,2743.8,0.72881]
[1739403515900,0.00545871,2743.9,2743.8,3.93661]
[1739403516297,0.00545871,2743.9,2743.8,3.2078]
[1739403516498,0.00545871,2743.9,2743.8,44.73661]
[1739403518302,0.00545871,2743.9,2743.8,40.8]
[1739403519399,0.73423871,2743.9,2743.8,40.8]
[1739403520002,0.00545871,2743.9,2743.8,40.8]
[1739403521505,0.00545871,2743.9,2743.8,41.52881]
[1739403524011,0.00545871,2743.9,2743.8,44.73661]
[1739403536918,8.71e-06,2743.9,2743.8,50.73661]
[1739403537312,8.71e-06,2743.9,2743.8,44.73661]
[1739403537511,8.71e-06,2743.9,2743.8,45.73651]
[1739403540815,5.14815008,2745.0,2744.6,0.7286]
[1739403541019,3.13515008,2745.0,2744.6,0.7286]
[1739403541316,1.72758,2744.7,2744.6,0.7286]
[1739403541516,0.999,2744.7,2744.6,41.5286]
[1739403542223,1.0224,2745.5,2744.8,0.72854]
[1739403542414,3.0344,2745.5,2745.1,3.2078]
[1739403542617,2.012,2745.5,2745.1,3.2078]
[1739403543123,2.012,2745.5,2745.2,0.72842]
[1739403543317,2.012,2745.5,2745.3,0.7284]
[1739403543624,0.00545871,2745.6,2745.5,0.72836]
[1739403544324,0.00545871,2745.6,2745.5,41.52836]
[1739403545221,0.00545871,2745.6,2745.5,40.8]
[1739403545425,0.00545871,2745.6,2745.4,3.2078]
[1739403545720,2.01745871,2745.6,2745.4,3.2078]
[1739403545919,2.01745871,2745.6,2745.2,40.8]
[1739403545920,2.74578871,2745.6,2745.2,40.8]
[1739403546115,5.94218204,2745.6,2745.1,0.00545871]
[1739403546323,3.92472333,2745.3,2745.1,0.00545871]
[1739403546520,5.94218204,2745.6,2745.1,0.00545871]
[1739403546825,5.94218204,2745.6,2745.3,0.72839]
[1739403547126,5.94218204,2745.6,2745.1,3.21325871]
[1739403547328,5.94218204,2745.6,2745.3,0.7284]
[1739403547826,0.00545871,2745.6,2745.5,0.72836]
[1739403548622,2.011,2746.3,2745.6,1.82078]
[1739403548825,2.011,2746.4,2746.3,0.72815]
[1739403549131,2.011,2746.4,2746.3,41.52815]
[1739403549317,2.011,2746.4,2746.3,40.8]
[1739403550323,3.92472333,2747.4,2747.0,0.72796]
[1739403550520,19.088,2747.7,2746.8,5.02784]
[1739403550521,1.0421,2747.6,2746.8,5.02784]
[1739403550821,23.74051333,2747.7,2747.1,3.2078]
[1739403551024,23.01272333,2747.7,2747.1,3.2078]
[1739403551223,23.01272333,2747.7,2747.1,3.93572]
[1739403551419,23.01272333,2747.7,2747.2,0.72789]
[1739403551618,23.01818204,2747.7,2747.2,0.72789]
[1739403551821,23.01818204,2747.7,2747.1,3.21325871]
[1739403552028,2.011,2747.6,2747.1,3.21325871]
[1739403552523,2.011,2747.6,2747.5,0.72783]
[1739403552930,2.011,2747.6,2747.4,0.72785]
[1739403553127,19.09345871,2747.7,2747.4,3.2078]
[1739403553527,23.01818204,2747.7,2747.4,3.2078]
[1739403554719,23.74597204,2747.7,2747.1,0.00545871]
[1739403554925,3.92472333,2747.4,2747.1,0.00545871]
[1739403555124,2.01,2747.3,2747.1,0.00545871]
[1739403555427,2.01,2747.3,2747.1,0.73338871]
[1739403555824,2.01,2747.3,2747.1,0.00545871]
[1739403556027,2.01,2747.3,2747.2,0.72791]
[1739403556426,2.01,2747.3,2747.1,0.00545871]
[1739403558034,1.0335,2747.2,2747.1,0.00545871]
[1739403559224,3.0425,2747.2,2747.1,0.00545871]
[1739403560323,0.72795,2747.1,2746.6,3.93587]
[1739403560525,1.82126,2747.0,2746.6,3.2078]
[1739403560724,1.0933,2747.0,2746.6,3.2078]
[1739403561021,1.82128,2747.0,2746.6,3.2078]
[1739403561631,3.92472333,2746.8,2746.6,3.2078]
[1739403561828,2.009,2746.7,2746.5,0.00545871]
[1739403562029,2.009,2746.7,2746.5,0.73353871]
[1739403562230,2.009,2746.7,2746.5,0.00545871]
[1739403566533,2.73705,2746.7,2746.5,0.00545871]
[1739403566841,2.009,2746.7,2746.5,0.00545871]
[1739403567040,3.2078,2746.6,2746.5,0.00545871]
[1739403567343,2.008,2746.7,2746.6,0.72807]
[1739403567734,2.008,2746.7,2746.5,3.21325871]
[1739403567933,5.13792503,2746.7,2746.5,0.00545871]
[1739403568134,5.86599503,2746.7,2746.5,0.00545871]
[1739403568526,0.72807,2746.6,2746.5,0.00545871]
[1739403568940,3.93587,2746.6,2746.5,0.00545871]
[1739403569134,1.82024,2746.5,2745.9,3.2078]
[1739403569334,3.12992503,2746.0,2745.9,3.2078]
[1739403569537,2.008,2746.0,2745.9,44.73605]
[1739403570232,2.008,2746.0,2745.9,3.2078]
[1739403571338,2.008,2746.0,2745.9,3.93605]
[1739403571745,2.008,2746.0,2745.9,3.2078]
[1739403572538,5.13792503,2746.0,2745.7,40.80545871]
[1739403572741,0.72828,2745.8,2745.7,0.00545871]
[1739403573443,6.72828,2745.8,2745.7,0.00545871]
[1739403573639,6.72828,2745.8,2745.0,0.72847]
[1739403573640,9.92700945,2745.8,2744.9,40.8]
[1739403573836,4.65544945,2745.3,2744.9,40.8]
[1739403574035,3.0228,2745.2,2744.9,40.8]
[1739403574242,3.75124,2745.2,2744.9,40.8]
[1739403574445,7.13480945,2745.0,2743.9,3.2078]
[1739403574741,3.92700945,2744.8,2744.0,1.074]
[1739403574945,2.01245871,2744.7,2744.2,3.21325871]
[1739403575145,2.01245871,2744.7,2744.5,0.72861]
[1739403575341,2.01245871,2744.7,2744.2,3.21325871]
[1739403575643,2.01245871,2744.7,2744.4,0.72864]
[1739403575947,2.01245871,2744.7,2744.6,0.7286]
[1739403576144,2.01245871,2744.7,2744.5,0.72861]
[1739403576439,2.01245871,2744.7,2744.2,3.21325871]
[1739403576649,2.01245871,2744.7,2744.6,0.7286]
[1739403577648,2.01245871,2744.7,2744.6,41.5286]
[1739403577846,2.01245871,2744.7,2744.6,40.8]
[1739403580539,2.01245871,2744.7,2744.6,41.5286]
[1739403581042,2.01245871,2744.7,2744.6,40.8]
[1739403583653,2.01245871,2744.7,2744.6,41.5286]
[1739403584148,2.01245871,2744.7,2744.6,40.8]
[1739403584544,2.01245871,2744.7,2744.6,41.5286]
[1739403586248,2.01245871,2744.7,2744.6,40.8]
[1739403586752,2.01245871,2744.7,2744.6,41.5286]
[1739403588249,2.01245871,2744.7,2744.6,40.8]
[1739403588553,2.01245871,2744.7,2744.6,41.5286]
[1739403590248,0.00545871,2744.7,2744.6,41.5286]
[1739403590653,0.00545871,2744.7,2744.6,44.7364]
[1739403591948,0.00545871,2744.7,2744.6,44.0078]
[1739403592251,0.00545871,2744.7,2744.3,3.2078]
[1739403592452,3.92700945,2744.5,2744.2,0.00545871]
[1739403592648,0.72868,2744.3,2744.2,0.00545871]
[1739403592850,7.13480945,2744.5,2744.2,0.00545871]
[1739403593054,7.86344945,2744.5,2744.2,0.00545871]
[1739403593253,7.13480945,2744.5,2744.2,0.00545871]
[1739403593449,3.2078,2744.5,2744.2,0.00545871]
[1739403594447,7.13480945,2744.5,2744.2,0.00545871]
[1739403594959,0.72867,2744.4,2744.2,0.00545871]
[1739403595451,7.13480945,2744.5,2744.2,0.00545871]
[1739403595655,0.00545871,2744.7,2744.2,3.21325871]
[1739403595856,2.005,2744.6,2744.2,3.21325871]
[1739403596161,2.005,2744.5,2744.4,0.72864]
[1739403596952,2.005,2744.6,2744.4,0.72864]
[1739403597760,2.005,2744.6,2744.2,3.21325871]
[1739403597961,2.005,2744.6,2744.3,0.72866]
[1739403598164,2.005,2744.6,2744.2,3.94194871]
[1739403598357,2.005,2744.6,2744.2,3.21325871]
[1739403598551,0.72868,2744.3,2744.2,0.00545871]
[1739403599854,7.13480945,2744.5,2744.2,0.00545871]
[1739403600053,0.72868,2744.3,2744.2,0.00545871]
[1739403601758,7.13480945,2744.5,2744.2,0.00545871]
[1739403601963,4.65563945,2744.5,2744.2,0.00545871]
[1739403602169,3.92700945,2744.5,2744.2,0.00545871]
[1739403602362,0.00545871,2744.7,2744.2,0.00545871]
[1739403602665,2.005,2744.6,2744.4,0.72864]
[1739403602865,2.005,2744.6,2744.3,3.2078]
[1739403603058,2.005,2744.6,2744.5,0.72862]
[1739403603566,2.005,2744.6,2744.4,0.72863]
[1739403603763,2.005,2744.6,2744.3,3.2078]
[1739403603970,2.005,2744.6,2744.4,0.72864]
[1739403604171,2.005,2744.6,2744.3,3.2078]
[1739403604762,2.005,2744.6,2744.3,0.72868]
[1739403605063,2.005,2744.6,2744.2,0.00545871]
[1739403605470,2.005,2744.6,2744.3,0.72866]
[1739403605970,2.005,2744.6,2744.2,0.00545871]
[1739403606166,2.005,2744.6,2744.4,0.72863]
[1739403606966,2.005,2744.6,2744.2,0.00545871]
[1739403607469,2.005,2744.6,2744.5,0.72862]
[1739403607974,2.005,2744.6,2744.2,1.08105871]
[1739403608159,2.005,2744.6,2744.4,0.72864]
[1739403608362,0.00545871,2744.7,2744.6,0.7286]
[1739403609472,0.00545871,2744.7,2744.6,41.5286]
[1739403613171,0.72837,2745.5,2745.3,0.7284]
[1739403614173,2.003,2745.6,2745.3,0.7284]
[1739403614369,2.73134,2745.6,2745.3,0.7284]
[1739403614673,2.003,2745.6,2745.1,3.2078]
[1739403614872,2.003,2745.6,2745.3,0.7284]
[1739403616274,2.003,2745.6,2745.2,40.8]
[1739403616676,2.003,2745.6,2745.3,0.7284]
[1739403616972,2.003,2745.6,2745.2,40.8]
[1739403617373,0.72837,2745.5,2745.1,3.2078]
[1739403617976,5.2108,2745.6,2745.1,3.2078]
[1739403618171,0.72845,2745.2,2744.8,3.2078]
[1739403618373,3.0019,2745.1,2744.8,3.2078]
[1739403618572,3.0019,2745.1,2744.8,3.93633]
[1739403619076,3.0019,2745.1,2744.8,3.2078]
[1739403619681,3.73037,2745.1,2744.8,3.2078]
[1739403619979,0.72852,2744.9,2744.8,3.2078]
[1739403620178,3.73038,2745.1,2744.8,3.2078]
[1739403621269,3.0019,2745.1,2744.8,3.2078]
[1739403621578,0.72851,2745.0,2744.8,3.2078]
[1739403621878,3.73038,2745.1,2744.8,3.2078]
[1739403622271,3.0019,2745.1,2744.8,3.2078]
[1739403622677,3.73037,2745.1,2744.7,41.52857]
[1739403622879,3.73037,2745.1,2744.7,40.8]
[1739403623180,0.7285,2745.0,2744.7,40.8]
[1739403623773,3.73038,2745.1,2744.7,40.8]
[1739403623973,3.73038,2745.1,2744.7,41.52857]
[1739403624375,3.73038,2745.1,2744.7,40.8]